[Event "Titled Tuesday Blitz April 11 Late 2023"]
[White "Kramnik, Vladimir"]
[Black "Kleiman, Jake"]
[WhiteFideId "4101588"]
[BlackFideId "2020041"]
[WhiteElo "2712"]
[BlackElo "2399"]
[Result "0-1"]
[Round "02"]
[TimeControl "180+2"]
[Date "2023.04.11"]
[WhiteClock "0:00:01"]
[BlackClock "0:00:14"]

1. e4 {[%clk 0:03:00]}  e5 {[%clk 0:03:00]} 2. Nf3 {[%clk 0:03:00]}  Nc6 {[%clk 0:03:00]} 3. g3 {[%clk 0:02:59]}  Nf6 {[%clk 0:02:59]} 4. d3 {[%clk 0:03:00]}  d5 {[%clk 0:02:59]} 5. exd5 {[%clk 0:02:59]}  Qxd5 {[%clk 0:02:56]} 6. Nc3 {[%clk 0:02:57]}  Bb4 {[%clk 0:02:55]} 7. Bg2 {[%clk 0:02:56]}  Bg4 {[%clk 0:02:54]} 8. h3 {[%clk 0:02:44]}  Bxf3 {[%clk 0:02:53]} 9. Bxf3 {[%clk 0:02:39]}  Qd7 {[%clk 0:02:50]} 10. Bd2 {[%clk 0:02:24]}  O-O-O {[%clk 0:02:49]} 11. Bg2 {[%clk 0:02:18]}  Rhe8 {[%clk 0:02:47]} 12. O-O {[%clk 0:02:16]}  Kb8 {[%clk 0:02:44]} 13. Bg5 {[%clk 0:02:13]}  Nd4 {[%clk 0:02:41]} 14. Bxf6 {[%clk 0:02:09]}  gxf6 {[%clk 0:02:41]} 15. Nd5 {[%clk 0:02:09]}  Be7 {[%clk 0:02:39]} 16. c3 {[%clk 0:02:08]}  Nc6 {[%clk 0:02:31]} 17. b4 {[%clk 0:02:01]}  Qe6 {[%clk 0:02:31]} 18. Qb3 {[%clk 0:01:59]}  Bf8 {[%clk 0:02:24]} 19. Rad1 {[%clk 0:01:47]}  Ne7 {[%clk 0:02:19]} 20. Ne3 {[%clk 0:01:47]}  Qxb3 {[%clk 0:02:16]} 21. axb3 {[%clk 0:01:47]}  f5 {[%clk 0:02:17]} 22. Nc4 {[%clk 0:01:39]}  Bg7 {[%clk 0:02:15]} 23. Rfe1 {[%clk 0:01:36]}  Nc8 {[%clk 0:02:14]} 24. Ne3 {[%clk 0:01:30]}  Ne7 {[%clk 0:02:04]} 25. Nc4 {[%clk 0:01:28]}  Nc8 {[%clk 0:02:04]} 26. h4 {[%clk 0:01:28]}  c6 {[%clk 0:01:56]} 27. Bh3 {[%clk 0:01:27]}  f4 {[%clk 0:01:49]} 28. Bxc8 {[%clk 0:01:26]}  Kxc8 {[%clk 0:01:40]} 29. gxf4 {[%clk 0:01:26]}  Rg8 {[%clk 0:01:30]} 30. Kf1 {[%clk 0:01:14]}  exf4 {[%clk 0:01:27]} 31. d4 {[%clk 0:01:14]}  Bf6 {[%clk 0:01:25]} 32. Ne5 {[%clk 0:01:09]}  Rg7 {[%clk 0:01:12]} 33. Nf3 {[%clk 0:01:00]}  Kc7 {[%clk 0:01:04]} 34. h5 {[%clk 0:00:58]}  Rd5 {[%clk 0:01:01]} 35. Re4 {[%clk 0:00:55]}  Rg4 {[%clk 0:00:56]} 36. Re8 {[%clk 0:00:53]}  Rxh5 {[%clk 0:00:54]} 37. Ke2 {[%clk 0:00:54]}  Rh6 {[%clk 0:00:37]} 38. Rf8 {[%clk 0:00:49]}  Rg7 {[%clk 0:00:37]} 39. c4 {[%clk 0:00:47]}  Be7 {[%clk 0:00:35]} 40. Rh8 {[%clk 0:00:47]}  Bxb4 {[%clk 0:00:35]} 41. d5 {[%clk 0:00:41]}  Rd6 {[%clk 0:00:32]} 42. dxc6 {[%clk 0:00:35]}  bxc6 {[%clk 0:00:28]} 43. Rxd6 {[%clk 0:00:34]}  Kxd6 {[%clk 0:00:29]} 44. Kd3 {[%clk 0:00:33]}  Bc5 {[%clk 0:00:27]} 45. Ke4 {[%clk 0:00:30]}  Bxf2 {[%clk 0:00:25]} 46. Rd8+ {[%clk 0:00:30]}  Ke7 {[%clk 0:00:22]} 47. Rb8 {[%clk 0:00:29]}  Be3 {[%clk 0:00:21]} 48. Kf5 {[%clk 0:00:29]}  Rg6 {[%clk 0:00:19]} 49. Rb7+ {[%clk 0:00:26]}  Ke8 {[%clk 0:00:18]} 50. Ne5 {[%clk 0:00:26]}  Rd6 {[%clk 0:00:12]} 51. Rb8+ {[%clk 0:00:17]}  Ke7 {[%clk 0:00:11]} 52. Rb7+ {[%clk 0:00:17]}  Ke8 {[%clk 0:00:12]} 53. b4 {[%clk 0:00:17]}  Bd4 {[%clk 0:00:09]} 54. Nf3 {[%clk 0:00:15]}  Be3 {[%clk 0:00:08]} 55. c5 {[%clk 0:00:15]}  Re6 {[%clk 0:00:08]} 56. Rxa7 {[%clk 0:00:14]}  h5 {[%clk 0:00:07]} 57. Ra8+ {[%clk 0:00:14]}  Ke7 {[%clk 0:00:07]} 58. Rh8 {[%clk 0:00:12]}  Rf6+ {[%clk 0:00:07]} 59. Ke4 {[%clk 0:00:11]}  Re6+ {[%clk 0:00:08]} 60. Kd3 {[%clk 0:00:11]}  Rg6 {[%clk 0:00:08]} 61. Rxh5 {[%clk 0:00:10]}  Rg3 {[%clk 0:00:09]} 62. Ke4 {[%clk 0:00:09]}  Rg6 {[%clk 0:00:09]} 63. Ne5 {[%clk 0:00:09]}  Re6 {[%clk 0:00:10]} 64. Rh7 {[%clk 0:00:08]}  Bd2 {[%clk 0:00:09]} 65. Rxf7+ {[%clk 0:00:07]}  Ke8 {[%clk 0:00:09]} 66. Rf5 {[%clk 0:00:04]}  Bxb4 {[%clk 0:00:09]} 67. Kxf4 {[%clk 0:00:03]}  Bxc5 {[%clk 0:00:09]} 68. Nd3 {[%clk 0:00:03]}  Bd6+ {[%clk 0:00:09]} 69. Kf3 {[%clk 0:00:03]}  Ke7 {[%clk 0:00:10]} 70. Nf4 {[%clk 0:00:02]}  Bxf4 {[%clk 0:00:10]} 71. Rxf4 {[%clk 0:00:02]}  Kd6 {[%clk 0:00:10]} 72. Rd4+ {[%clk 0:00:02]}  Kc5 {[%clk 0:00:10]} 73. Rd1 {[%clk 0:00:02]}  Kb5 {[%clk 0:00:09]} 74. Rb1+ {[%clk 0:00:01]}  Kc5 {[%clk 0:00:09]} 75. Rc1+ {[%clk 0:00:01]}  Kd6 {[%clk 0:00:10]} 76. Rd1+ {[%clk 0:00:01]}  Kc7 {[%clk 0:00:10]} 77. Rc1 {[%clk 0:00:02]}  Re5 {[%clk 0:00:11]} 78. Kf4 {[%clk 0:00:01]}  Rd5 {[%clk 0:00:11]} 79. Ke4 {[%clk 0:00:01]}  Rd2 {[%clk 0:00:11]} 80. Ke3 {[%clk 0:00:01]}  Rd7 {[%clk 0:00:12]} 81. Ke4 {[%clk 0:00:02]}  Rd5 {[%clk 0:00:12]} 82. Rc2 {[%clk 0:00:01]}  Kd6 {[%clk 0:00:13]} 83. Rb2 {[%clk 0:00:01]}  Rc5 {[%clk 0:00:13]} 84. Rd2+ {[%clk 0:00:01]}  Rd5 {[%clk 0:00:13]} 85. Rb2 {[%clk 0:00:01]}  Re5+ {[%clk 0:00:13]} 86. Kd4 {[%clk 0:00:01]}  Rd5+ {[%clk 0:00:14]} 0-1


[Site "https://www.chess.com"]

[Event "Titled Tuesday Blitz April 11 Late 2023"]
[White "Deac, Bogdan-Daniel"]
[Black "Danielyan, Vahe"]
[WhiteFideId "1226380"]
[BlackFideId "13304828"]
[WhiteElo "2649"]
[BlackElo "2423"]
[Result "1-0"]
[Round "02"]
[TimeControl "180+2"]
[Date "2023.04.11"]
[WhiteClock "0:00:11"]
[BlackClock "0:00:02"]

1. b3 {[%clk 0:03:00]}  b6 {[%clk 0:02:59]} 2. Bb2 {[%clk 0:03:00]}  Bb7 {[%clk 0:02:59]} 3. Nf3 {[%clk 0:03:01]}  Nf6 {[%clk 0:02:59]} 4. c4 {[%clk 0:03:01]}  e6 {[%clk 0:02:58]} 5. g3 {[%clk 0:03:01]}  Be7 {[%clk 0:02:59]} 6. Bg2 {[%clk 0:03:00]}  O-O {[%clk 0:02:59]} 7. O-O {[%clk 0:03:01]}  c5 {[%clk 0:02:59]} 8. e3 {[%clk 0:03:00]}  d6 {[%clk 0:02:59]} 9. Nc3 {[%clk 0:02:58]}  Nbd7 {[%clk 0:02:59]} 10. Qe2 {[%clk 0:02:59]}  a6 {[%clk 0:02:58]} 11. Ne1 {[%clk 0:02:55]}  Bxg2 {[%clk 0:02:56]} 12. Nxg2 {[%clk 0:02:56]}  Qc7 {[%clk 0:02:55]} 13. g4 {[%clk 0:02:54]}  d5 {[%clk 0:02:32]} 14. d3 {[%clk 0:02:52]}  d4 {[%clk 0:02:17]} 15. exd4 {[%clk 0:02:50]}  cxd4 {[%clk 0:02:18]} 16. Nd1 {[%clk 0:02:51]}  e5 {[%clk 0:02:09]} 17. g5 {[%clk 0:02:47]}  Ne8 {[%clk 0:02:09]} 18. f4 {[%clk 0:02:47]}  Bd6 {[%clk 0:02:01]} 19. f5 {[%clk 0:02:36]}  Nc5 {[%clk 0:01:47]} 20. Nf2 {[%clk 0:02:32]}  g6 {[%clk 0:01:09]} 21. f6 {[%clk 0:02:06]}  h5 {[%clk 0:01:06]} 22. Nh4 {[%clk 0:01:56]}  e4 {[%clk 0:01:00]} 23. Nxe4 {[%clk 0:01:46]}  Nxe4 {[%clk 0:00:58]} 24. dxe4 {[%clk 0:01:46]}  Be5 {[%clk 0:00:54]} 25. Rad1 {[%clk 0:01:38]}  d3 {[%clk 0:00:48]} 26. Rxd3 {[%clk 0:01:29]}  Bxb2 {[%clk 0:00:45]} 27. Qxb2 {[%clk 0:01:30]}  Nd6 {[%clk 0:00:45]} 28. Qe5 {[%clk 0:00:30]}  Rad8 {[%clk 0:00:22]} 29. Rfd1 {[%clk 0:00:29]}  Rfe8 {[%clk 0:00:23]} 30. Qg3 {[%clk 0:00:28]}  Qc5+ {[%clk 0:00:15]} 31. Kg2 {[%clk 0:00:21]}  Nb7 {[%clk 0:00:14]} 32. Rxd8 {[%clk 0:00:18]}  Nxd8 {[%clk 0:00:15]} 33. Rd5 {[%clk 0:00:17]}  Qa3 {[%clk 0:00:14]} 34. Qf2 {[%clk 0:00:15]}  Ne6 {[%clk 0:00:13]} 35. Qd2 {[%clk 0:00:15]}  b5 {[%clk 0:00:09]} 36. cxb5 {[%clk 0:00:12]}  axb5 {[%clk 0:00:10]} 37. Nf3 {[%clk 0:00:13]}  Ra8 {[%clk 0:00:07]} 38. Nd4 {[%clk 0:00:13]}  Qxa2 {[%clk 0:00:06]} 39. Nxe6 {[%clk 0:00:11]}  Qxd2+ {[%clk 0:00:01]} 40. Rxd2 {[%clk 0:00:11]}  fxe6 {[%clk 0:00:02]} 41. Rd7 {[%clk 0:00:10]}  Ra2+ {[%clk 0:00:01]} 42. Kg3 {[%clk 0:00:10]}  Ra3 {[%clk 0:00:02]} 43. Rg7+ {[%clk 0:00:10]}  Kf8 {[%clk 0:00:02]} 44. Rxg6 {[%clk 0:00:11]}  Rxb3+ {[%clk 0:00:03]} 45. Kf4 {[%clk 0:00:11]}  Rh3 {[%clk 0:00:02]} 46. Rg7 {[%clk 0:00:11]}  Rxh2 {[%clk 0:00:02]} 47. Ke5 {[%clk 0:00:12]}  b4 {[%clk 0:00:02]} 48. Kxe6 {[%clk 0:00:11]}  Rc2 {[%clk 0:00:02]} 49. Rb7 {[%clk 0:00:11]}  Rc6+ {[%clk 0:00:02]} 50. Kf5 {[%clk 0:00:11]} 1-0


[Site "https://www.chess.com"]

[Event "Titled Tuesday Blitz April 11 Late 2023"]
[White "Atanasov, Anthony"]
[Black "Zhigalko, Sergei"]
[WhiteFideId "2623897"]
[BlackFideId "13502956"]
[WhiteElo "2326"]
[BlackElo "2626"]
[Result "0-1"]
[Round "02"]
[TimeControl "180+2"]
[Date "2023.04.11"]
[WhiteClock "0:00:05"]
[BlackClock "0:00:07"]

1. d4 {[%clk 0:03:00]}  Nf6 {[%clk 0:02:59]} 2. Nf3 {[%clk 0:02:59]}  e6 {[%clk 0:02:59]} 3. Bf4 {[%clk 0:02:59]}  b6 {[%clk 0:03:00]} 4. e3 {[%clk 0:02:58]}  Bb7 {[%clk 0:03:00]} 5. Nbd2 {[%clk 0:02:57]}  Nh5 {[%clk 0:03:00]} 6. Bg5 {[%clk 0:02:55]}  Be7 {[%clk 0:03:00]} 7. h4 {[%clk 0:02:55]}  h6 {[%clk 0:02:58]} 8. Bxe7 {[%clk 0:02:55]}  Qxe7 {[%clk 0:02:59]} 9. c3 {[%clk 0:02:53]}  d6 {[%clk 0:02:58]} 10. Bd3 {[%clk 0:02:51]}  Nf6 {[%clk 0:02:56]} 11. Qe2 {[%clk 0:02:51]}  e5 {[%clk 0:02:55]} 12. dxe5 {[%clk 0:02:42]}  dxe5 {[%clk 0:02:55]} 13. Bb5+ {[%clk 0:02:39]}  Nbd7 {[%clk 0:02:54]} 14. Ba6 {[%clk 0:02:37]}  Bxa6 {[%clk 0:02:53]} 15. Qxa6 {[%clk 0:02:37]}  O-O {[%clk 0:02:54]} 16. O-O-O {[%clk 0:02:36]}  Nc5 {[%clk 0:02:53]} 17. Qc4 {[%clk 0:02:33]}  e4 {[%clk 0:02:47]} 18. Ne1 {[%clk 0:02:32]}  Rfd8 {[%clk 0:02:46]} 19. Nb3 {[%clk 0:02:24]}  Rxd1+ {[%clk 0:02:42]} 20. Kxd1 {[%clk 0:02:24]}  Rd8+ {[%clk 0:02:41]} 21. Kc1 {[%clk 0:02:18]}  Qd7 {[%clk 0:02:33]} 22. Qd4 {[%clk 0:01:59]}  Qe8 {[%clk 0:02:22]} 23. Qc4 {[%clk 0:01:59]}  Qd7 {[%clk 0:01:57]} 24. Qd4 {[%clk 0:01:58]}  Qc8 {[%clk 0:01:58]} 25. Qc4 {[%clk 0:01:58]}  Qg4 {[%clk 0:01:53]} 26. f3 {[%clk 0:01:44]}  exf3 {[%clk 0:01:36]} 27. Qxg4 {[%clk 0:01:45]}  Nxg4 {[%clk 0:01:34]} 28. Nxc5 {[%clk 0:01:31]}  fxg2 {[%clk 0:01:20]} 29. Nxg2 {[%clk 0:01:32]}  bxc5 {[%clk 0:01:20]} 30. Rf1 {[%clk 0:01:26]}  Ne5 {[%clk 0:01:01]} 31. Kc2 {[%clk 0:01:16]}  g6 {[%clk 0:00:54]} 32. Rf6 {[%clk 0:01:03]}  Rd6 {[%clk 0:00:50]} 33. Rf4 {[%clk 0:01:00]}  Kg7 {[%clk 0:00:39]} 34. Ra4 {[%clk 0:00:56]}  a6 {[%clk 0:00:39]} 35. Re4 {[%clk 0:00:56]}  Nf3 {[%clk 0:00:34]} 36. Kc1 {[%clk 0:00:44]}  g5 {[%clk 0:00:26]} 37. hxg5 {[%clk 0:00:42]}  hxg5 {[%clk 0:00:26]} 38. b4 {[%clk 0:00:41]}  Rh6 {[%clk 0:00:17]} 39. Rg4 {[%clk 0:00:35]}  cxb4 {[%clk 0:00:14]} 40. cxb4 {[%clk 0:00:34]}  f5 {[%clk 0:00:12]} 41. Rc4 {[%clk 0:00:34]}  Rh1+ {[%clk 0:00:10]} 42. Kb2 {[%clk 0:00:34]}  Rh2 {[%clk 0:00:11]} 43. Rxc7+ {[%clk 0:00:34]}  Kf6 {[%clk 0:00:11]} 44. Rc2 {[%clk 0:00:34]}  g4 {[%clk 0:00:05]} 45. a4 {[%clk 0:00:34]}  Ne5 {[%clk 0:00:04]} 46. b5 {[%clk 0:00:29]}  axb5 {[%clk 0:00:05]} 47. axb5 {[%clk 0:00:30]}  Nd7 {[%clk 0:00:05]} 48. Kb3 {[%clk 0:00:25]}  g3 {[%clk 0:00:05]} 49. Kb4 {[%clk 0:00:24]}  Ke5 {[%clk 0:00:05]} 50. Rd2 {[%clk 0:00:20]}  Ke4 {[%clk 0:00:04]} 51. Ka5 {[%clk 0:00:13]}  Ne5 {[%clk 0:00:03]} 52. Ka6 {[%clk 0:00:07]}  Kf3 {[%clk 0:00:01]} 53. Ne1+ {[%clk 0:00:04]}  Kxe3 {[%clk 0:00:01]} 54. Rd5 {[%clk 0:00:03]}  Ke4 {[%clk 0:00:01]} 55. Rc5 {[%clk 0:00:02]}  Ra2+ {[%clk 0:00:01]} 56. Kb7 {[%clk 0:00:03]}  Re2 {[%clk 0:00:02]} 57. Nc2 {[%clk 0:00:03]}  g2 {[%clk 0:00:01]} 58. Nb4 {[%clk 0:00:03]}  g1=Q {[%clk 0:00:01]} 59. Rc7 {[%clk 0:00:03]}  Qg2 {[%clk 0:00:02]} 60. Na6 {[%clk 0:00:03]}  Kf4+ {[%clk 0:00:02]} 61. Kb6 {[%clk 0:00:04]}  Rd2 {[%clk 0:00:03]} 62. Nc5 {[%clk 0:00:04]}  Rd5 {[%clk 0:00:03]} 63. Ne6+ {[%clk 0:00:04]}  Kf3 {[%clk 0:00:03]} 64. Rc3+ {[%clk 0:00:04]}  Ke2 {[%clk 0:00:03]} 65. Nf4+ {[%clk 0:00:04]}  Kf1 {[%clk 0:00:03]} 66. Rc1+ {[%clk 0:00:03]}  Kf2 {[%clk 0:00:03]} 67. Rc2+ {[%clk 0:00:03]}  Kf3 {[%clk 0:00:04]} 68. Nxg2 {[%clk 0:00:03]}  Nd3 {[%clk 0:00:04]} 69. Kc6 {[%clk 0:00:02]}  Nb4+ {[%clk 0:00:04]} 70. Kb7 {[%clk 0:00:02]}  Nxc2 {[%clk 0:00:05]} 71. Ne1+ {[%clk 0:00:03]}  Nxe1 {[%clk 0:00:05]} 72. b6 {[%clk 0:00:03]}  Rd2 {[%clk 0:00:06]} 73. Ka7 {[%clk 0:00:03]}  Rb2 {[%clk 0:00:07]} 74. Kb7 {[%clk 0:00:04]}  Ke4 {[%clk 0:00:07]} 75. Ka8 {[%clk 0:00:05]} 0-1


[Site "https://www.chess.com"]

[Event "Titled Tuesday Blitz April 11 Late 2023"]
[White "Plotnikov, Pavel"]
[Black "Corrales Jimenez, Fidel"]
[WhiteFideId "4170342"]
[BlackFideId "3506690"]
[WhiteElo "2298"]
[BlackElo "2541"]
[Result "0-1"]
[Round "02"]
[TimeControl "180+2"]
[Date "2023.04.11"]
[WhiteClock "0:00:02"]
[BlackClock "0:01:01"]

1. e4 {[%clk 0:03:00]}  c6 {[%clk 0:02:57]} 2. d4 {[%clk 0:03:00]}  d5 {[%clk 0:02:57]} 3. exd5 {[%clk 0:03:00]}  cxd5 {[%clk 0:02:52]} 4. Bd3 {[%clk 0:03:00]}  Nc6 {[%clk 0:02:52]} 5. c3 {[%clk 0:03:00]}  Nf6 {[%clk 0:02:52]} 6. Bf4 {[%clk 0:02:59]}  g6 {[%clk 0:02:51]} 7. Nf3 {[%clk 0:02:56]}  Bg7 {[%clk 0:02:51]} 8. h3 {[%clk 0:02:55]}  O-O {[%clk 0:02:51]} 9. O-O {[%clk 0:02:55]}  b6 {[%clk 0:02:50]} 10. Nbd2 {[%clk 0:02:53]}  Bb7 {[%clk 0:02:40]} 11. Re1 {[%clk 0:02:52]}  e6 {[%clk 0:02:39]} 12. Qe2 {[%clk 0:02:49]}  Ne7 {[%clk 0:02:39]} 13. Ne5 {[%clk 0:02:48]}  Nf5 {[%clk 0:02:39]} 14. g4 {[%clk 0:02:44]}  Nd6 {[%clk 0:02:39]} 15. h4 {[%clk 0:02:33]}  Nfe4 {[%clk 0:02:39]} 16. Nef3 {[%clk 0:02:02]}  Nxd2 {[%clk 0:02:36]} 17. Bxd2 {[%clk 0:01:57]}  Ne4 {[%clk 0:02:36]} 18. Bf4 {[%clk 0:01:52]}  f5 {[%clk 0:02:28]} 19. g5 {[%clk 0:01:51]}  h6 {[%clk 0:02:14]} 20. Qe3 {[%clk 0:01:49]}  hxg5 {[%clk 0:02:14]} 21. hxg5 {[%clk 0:01:46]}  Kf7 {[%clk 0:02:12]} 22. Kg2 {[%clk 0:01:34]}  Rh8 {[%clk 0:02:03]} 23. Rh1 {[%clk 0:01:34]}  Qe7 {[%clk 0:02:01]} 24. Ne5+ {[%clk 0:01:28]}  Bxe5 {[%clk 0:01:41]} 25. Bxe5 {[%clk 0:01:29]}  Rh5 {[%clk 0:01:42]} 26. Rxh5 {[%clk 0:01:18]}  gxh5 {[%clk 0:01:42]} 27. Rh1 {[%clk 0:01:10]}  Qxg5+ {[%clk 0:01:39]} 28. Qxg5 {[%clk 0:01:09]}  Nxg5 {[%clk 0:01:40]} 29. Rxh5 {[%clk 0:01:10]}  Kg6 {[%clk 0:01:40]} 30. Rh1 {[%clk 0:01:08]}  Rg8 {[%clk 0:01:39]} 31. f3 {[%clk 0:01:07]}  Nf7 {[%clk 0:01:38]} 32. Bf4 {[%clk 0:01:07]}  Rh8 {[%clk 0:01:33]} 33. Rg1 {[%clk 0:01:03]}  Kf6 {[%clk 0:01:33]} 34. a4 {[%clk 0:01:02]}  Rg8+ {[%clk 0:01:32]} 35. Kf2 {[%clk 0:01:02]}  Rxg1 {[%clk 0:01:33]} 36. Kxg1 {[%clk 0:01:03]}  Bc6 {[%clk 0:01:32]} 37. b3 {[%clk 0:01:02]}  e5 {[%clk 0:01:32]} 38. Be3 {[%clk 0:01:01]}  e4 {[%clk 0:01:31]} 39. Be2 {[%clk 0:01:00]}  Ng5 {[%clk 0:01:29]} 40. Kf2 {[%clk 0:00:58]}  Ne6 {[%clk 0:01:29]} 41. Kg3 {[%clk 0:00:56]}  Be8 {[%clk 0:01:29]} 42. fxe4 {[%clk 0:00:55]}  dxe4 {[%clk 0:01:30]} 43. d5 {[%clk 0:00:44]}  Nc5 {[%clk 0:01:29]} 44. Bd4+ {[%clk 0:00:40]}  Kg5 {[%clk 0:01:27]} 45. Be3+ {[%clk 0:00:40]}  Kf6 {[%clk 0:01:24]} 46. Bd4+ {[%clk 0:00:40]}  Ke7 {[%clk 0:01:22]} 47. Bd1 {[%clk 0:00:29]}  Kd6 {[%clk 0:01:20]} 48. c4 {[%clk 0:00:23]}  Nd3 {[%clk 0:01:20]} 49. Bc2 {[%clk 0:00:18]}  f4+ {[%clk 0:01:19]} 50. Kg4 {[%clk 0:00:16]}  Bd7+ {[%clk 0:01:13]} 51. Kh4 {[%clk 0:00:16]}  Nc5 {[%clk 0:01:06]} 52. Bg7 {[%clk 0:00:08]}  e3 {[%clk 0:01:05]} 53. Bd1 {[%clk 0:00:07]}  Ne4 {[%clk 0:01:02]} 54. Bf8+ {[%clk 0:00:02]}  Kc7 {[%clk 0:01:01]} 0-1


[Site "https://www.chess.com"]

[Event "Titled Tuesday Blitz April 11 Late 2023"]
[White "Di Berardino, Diego Rafael"]
[Black "Talibov, Shiroghlan"]
[WhiteFideId "2105446"]
[BlackFideId "13429078"]
[WhiteElo "2432"]
[BlackElo "2224"]
[Result "0-1"]
[Round "02"]
[TimeControl "180+2"]
[Date "2023.04.11"]
[WhiteClock "0:00:02"]
[BlackClock "0:00:24"]

1. d4 {[%clk 0:03:00]}  d5 {[%clk 0:02:57]} 2. Nf3 {[%clk 0:03:00]}  Nf6 {[%clk 0:02:52]} 3. c4 {[%clk 0:02:58]}  e6 {[%clk 0:02:41]} 4. Nc3 {[%clk 0:02:55]}  c6 {[%clk 0:02:29]} 5. cxd5 {[%clk 0:02:51]}  exd5 {[%clk 0:02:28]} 6. Bg5 {[%clk 0:02:50]}  Bd6 {[%clk 0:02:28]} 7. e3 {[%clk 0:02:49]}  O-O {[%clk 0:02:27]} 8. Qc2 {[%clk 0:02:47]}  h6 {[%clk 0:02:26]} 9. Bh4 {[%clk 0:02:42]}  a5 {[%clk 0:02:25]} 10. Bd3 {[%clk 0:02:40]}  Na6 {[%clk 0:02:24]} 11. a3 {[%clk 0:02:39]}  Re8 {[%clk 0:02:24]} 12. O-O {[%clk 0:02:37]}  Bg4 {[%clk 0:02:22]} 13. Nd2 {[%clk 0:02:34]}  Nc7 {[%clk 0:02:21]} 14. f3 {[%clk 0:02:22]}  Bd7 {[%clk 0:02:13]} 15. Rae1 {[%clk 0:02:10]}  c5 {[%clk 0:02:12]} 16. Kh1 {[%clk 0:01:54]}  b6 {[%clk 0:02:10]} 17. dxc5 {[%clk 0:01:47]}  bxc5 {[%clk 0:02:11]} 18. e4 {[%clk 0:01:34]}  d4 {[%clk 0:02:09]} 19. Nd5 {[%clk 0:01:27]}  Ncxd5 {[%clk 0:02:01]} 20. exd5 {[%clk 0:01:27]}  g5 {[%clk 0:02:01]} 21. Rxe8+ {[%clk 0:01:23]}  Qxe8 {[%clk 0:02:02]} 22. Re1 {[%clk 0:01:20]}  Qb8 {[%clk 0:01:58]} 23. Bf2 {[%clk 0:01:11]}  Qc7 {[%clk 0:01:17]} 24. Nc4 {[%clk 0:00:46]}  Bxh2 {[%clk 0:01:11]} 25. Bf5 {[%clk 0:00:36]}  Bb5 {[%clk 0:00:44]} 26. Be6 {[%clk 0:00:20]}  Kg7 {[%clk 0:00:41]} 27. d6 {[%clk 0:00:04]}  Bxd6 {[%clk 0:00:39]} 28. Bf5 {[%clk 0:00:03]}  Bg3 {[%clk 0:00:33]} 29. Bxg3 {[%clk 0:00:01]}  Qxg3 {[%clk 0:00:33]} 30. Re7 {[%clk 0:00:01]}  Re8 {[%clk 0:00:29]} 31. Rxe8 {[%clk 0:00:01]}  Nxe8 {[%clk 0:00:28]} 32. Nd2 {[%clk 0:00:01]}  Qe1+ {[%clk 0:00:24]} 33. Kh2 {[%clk 0:00:01]}  Qe5+ {[%clk 0:00:24]} 34. Kg1 {[%clk 0:00:02]}  Nf6 {[%clk 0:00:24]} 35. Bd3 {[%clk 0:00:02]}  Qe3+ {[%clk 0:00:24]} 36. Kh2 {[%clk 0:00:02]}  Bxd3 {[%clk 0:00:24]} 0-1


[Site "https://www.chess.com"]

[Event "Titled Tuesday Blitz April 11 Late 2023"]
[White "Kevlishvili, Robby"]
[Black "Wadsworth, Matthew J"]
[WhiteFideId "1040634"]
[BlackFideId "415804"]
[WhiteElo "2572"]
[BlackElo "2330"]
[Result "1-0"]
[Round "02"]
[TimeControl "180+2"]
[Date "2023.04.11"]
[WhiteClock "0:01:27"]
[BlackClock "0:00:29"]

1. e4 {[%clk 0:03:00]}  e6 {[%clk 0:03:00]} 2. d4 {[%clk 0:02:59]}  d5 {[%clk 0:03:00]} 3. Nd2 {[%clk 0:02:59]}  Be7 {[%clk 0:02:58]} 4. Ngf3 {[%clk 0:02:59]}  Nf6 {[%clk 0:02:58]} 5. e5 {[%clk 0:02:59]}  Nfd7 {[%clk 0:02:59]} 6. Bd3 {[%clk 0:03:00]}  c5 {[%clk 0:02:59]} 7. c3 {[%clk 0:03:01]}  b6 {[%clk 0:02:59]} 8. O-O {[%clk 0:03:01]}  Ba6 {[%clk 0:03:00]} 9. Ne1 {[%clk 0:03:02]}  Bxd3 {[%clk 0:02:57]} 10. Nxd3 {[%clk 0:03:02]}  Nc6 {[%clk 0:02:53]} 11. Qg4 {[%clk 0:03:02]}  g6 {[%clk 0:02:47]} 12. Nf3 {[%clk 0:03:03]}  h5 {[%clk 0:02:44]} 13. Qg3 {[%clk 0:03:00]}  Qc7 {[%clk 0:02:28]} 14. Be3 {[%clk 0:02:51]}  c4 {[%clk 0:02:21]} 15. Nf4 {[%clk 0:02:50]}  O-O-O {[%clk 0:02:15]} 16. b3 {[%clk 0:02:45]}  Na5 {[%clk 0:02:14]} 17. Nd2 {[%clk 0:02:43]}  g5 {[%clk 0:02:01]} 18. Ne2 {[%clk 0:02:43]}  Rdg8 {[%clk 0:02:00]} 19. h3 {[%clk 0:02:26]}  g4 {[%clk 0:01:56]} 20. h4 {[%clk 0:02:22]}  Nf8 {[%clk 0:01:53]} 21. Nf4 {[%clk 0:02:14]}  Ng6 {[%clk 0:01:36]} 22. Nxg6 {[%clk 0:02:14]}  Rxg6 {[%clk 0:01:37]} 23. bxc4 {[%clk 0:01:50]}  Nxc4 {[%clk 0:01:23]} 24. Nxc4 {[%clk 0:01:50]}  Qxc4 {[%clk 0:01:23]} 25. a4 {[%clk 0:01:46]}  a6 {[%clk 0:01:20]} 26. Rfb1 {[%clk 0:01:45]}  Kb7 {[%clk 0:01:15]} 27. Rb2 {[%clk 0:01:41]}  Bd8 {[%clk 0:00:45]} 28. Bg5 {[%clk 0:01:31]}  Bxg5 {[%clk 0:00:39]} 29. hxg5 {[%clk 0:01:31]}  Rc8 {[%clk 0:00:39]} 30. Rab1 {[%clk 0:01:29]}  Rc6 {[%clk 0:00:37]} 31. Qf4 {[%clk 0:01:29]}  Rg7 {[%clk 0:00:35]} 32. Qf6 {[%clk 0:01:29]}  Rh7 {[%clk 0:00:35]} 33. Qe7+ {[%clk 0:01:27]}  Rc7 {[%clk 0:00:29]} 34. Rxb6+ {[%clk 0:01:27]}  Ka7 {[%clk 0:00:29]} 35. Rb7+ {[%clk 0:01:27]} 1-0


[Site "https://www.chess.com"]

[Event "Titled Tuesday Blitz April 11 Late 2023"]
[White "Melkumyan, Hrant"]
[Black "Cori T., Deysi"]
[WhiteFideId "13302485"]
[BlackFideId "3801934"]
[WhiteElo "2604"]
[BlackElo "2292"]
[Result "1-0"]
[Round "02"]
[TimeControl "180+2"]
[Date "2023.04.11"]
[WhiteClock "0:01:07"]
[BlackClock "0:00:01"]

1. d4 {[%clk 0:02:57]}  Nf6 {[%clk 0:02:49]} 2. c4 {[%clk 0:02:56]}  e6 {[%clk 0:02:49]} 3. Nf3 {[%clk 0:02:56]}  Bb4+ {[%clk 0:02:47]} 4. Bd2 {[%clk 0:02:52]}  Qe7 {[%clk 0:02:47]} 5. g3 {[%clk 0:02:51]}  Nc6 {[%clk 0:02:46]} 6. b3 {[%clk 0:02:48]}  O-O {[%clk 0:02:41]} 7. Bg2 {[%clk 0:02:48]}  Bxd2+ {[%clk 0:02:40]} 8. Qxd2 {[%clk 0:02:46]}  d6 {[%clk 0:02:39]} 9. Nc3 {[%clk 0:02:44]}  e5 {[%clk 0:02:39]} 10. O-O {[%clk 0:02:44]}  a5 {[%clk 0:02:31]} 11. e3 {[%clk 0:02:30]}  Bg4 {[%clk 0:01:59]} 12. Ne1 {[%clk 0:02:26]}  Rfe8 {[%clk 0:01:41]} 13. Nc2 {[%clk 0:02:11]}  Qd7 {[%clk 0:01:15]} 14. Rfe1 {[%clk 0:02:09]}  Bh3 {[%clk 0:01:13]} 15. Bh1 {[%clk 0:02:08]}  exd4 {[%clk 0:01:03]} 16. exd4 {[%clk 0:02:04]}  Qf5 {[%clk 0:01:03]} 17. Ne3 {[%clk 0:01:52]}  Qh5 {[%clk 0:00:58]} 18. Qd1 {[%clk 0:01:52]}  Qh6 {[%clk 0:00:49]} 19. Nb5 {[%clk 0:01:48]}  Rac8 {[%clk 0:00:41]} 20. Nd5 {[%clk 0:01:42]}  Rxe1+ {[%clk 0:00:18]} 21. Qxe1 {[%clk 0:01:41]}  Nxd5 {[%clk 0:00:15]} 22. Bxd5 {[%clk 0:01:42]}  Bd7 {[%clk 0:00:12]} 23. Qe3 {[%clk 0:01:37]}  Qxe3 {[%clk 0:00:09]} 24. fxe3 {[%clk 0:01:37]}  Nb4 {[%clk 0:00:09]} 25. Bxb7 {[%clk 0:01:36]}  Rb8 {[%clk 0:00:09]} 26. Bf3 {[%clk 0:01:29]}  Bxb5 {[%clk 0:00:08]} 27. cxb5 {[%clk 0:01:30]}  Rxb5 {[%clk 0:00:08]} 28. Rc1 {[%clk 0:01:31]}  c5 {[%clk 0:00:08]} 29. a4 {[%clk 0:01:29]}  Rb8 {[%clk 0:00:07]} 30. dxc5 {[%clk 0:01:24]}  Nd3 {[%clk 0:00:07]} 31. Rd1 {[%clk 0:01:24]}  Nxc5 {[%clk 0:00:07]} 32. Rxd6 {[%clk 0:01:25]}  Nxb3 {[%clk 0:00:06]} 33. Rc6 {[%clk 0:01:17]}  Nd2 {[%clk 0:00:02]} 34. Bd5 {[%clk 0:01:17]}  h5 {[%clk 0:00:01]} 35. Rc7 {[%clk 0:01:16]}  Rf8 {[%clk 0:00:01]} 36. Kf2 {[%clk 0:01:13]}  Nb1 {[%clk 0:00:01]} 37. e4 {[%clk 0:01:07]} 1-0


[Site "https://www.chess.com"]